[Event "January 9 Late 2024"]
[Site "https://www.chess.com"]
[Date "2024.01.10"]
[Round "6"]
[White "Espinoza Palomino, Willyam"]
[Black "Jazdanovs, Aleksandrs"]
[Result "1-0"]
[Board "138"]
[TimeControl "180+1"]
[WhiteFideId "3804852"]
[BlackFideId "11604492"]
[WhiteElo "2516"]
[BlackElo "2328"]
[WhiteTeam "PER"]
[BlackTeam "LAT"]
[WhiteClock "0:01:52"]
[BlackClock "0:01:42"]

1. e4 {[%clk 0:02:27]}  c5 {[%clk 0:02:45]} 2. Nf3 {[%clk 0:02:28]}  d6 {[%clk 0:02:46]} 3. d4 {[%clk 0:02:28]}  cxd4 {[%clk 0:02:47]} 4. Nxd4 {[%clk 0:02:28]}  Nf6 {[%clk 0:02:48]} 5. Nc3 {[%clk 0:02:29]}  a6 {[%clk 0:02:49]} 6. h3 {[%clk 0:02:29]}  e5 {[%clk 0:02:48]} 7. Nde2 {[%clk 0:02:29]}  h5 {[%clk 0:02:49]} 8. g3 {[%clk 0:02:29]}  Be7 {[%clk 0:02:49]} 9. Bg2 {[%clk 0:02:30]}  Nbd7 {[%clk 0:02:46]} 10. a4 {[%clk 0:02:28]}  O-O {[%clk 0:02:39]} 11. O-O {[%clk 0:02:28]}  b6 {[%clk 0:02:39]} 12. Be3 {[%clk 0:02:21]}  Bb7 {[%clk 0:02:38]} 13. f4 {[%clk 0:02:21]}  exf4 {[%clk 0:02:32]} 14. Nxf4 {[%clk 0:02:16]}  Nc5 {[%clk 0:02:21]} 15. Nxh5 {[%clk 0:02:04]}  Re8 {[%clk 0:01:56]} 16. Bd4 {[%clk 0:01:52]}  Nxh5 {[%clk 0:01:42]} 17. Qxh5 {[%clk 0:01:53]}  g6 {[%clk 0:01:42]} 18. Qh8# {[%clk 0:01:52]} 1-0

[Event "January 9 Late 2024"]
[Site "https://www.chess.com"]
[Date "2024.01.09"]
[Round "6"]
[White "Lemos, Dawton Almino"]
[Black "Soderstrom, Adrian"]
[Result "1-0"]
[Board "139"]
[TimeControl "180+1"]
[WhiteFideId "2146797"]
[BlackFideId "1745786"]
[WhiteElo "2322"]
[BlackElo "2511"]
[WhiteTeam "BRA"]
[BlackTeam "SWE"]
[WhiteClock "0:00:12"]
[BlackClock "0:00:23"]

1. Nf3 {[%clk 0:02:25]}  g5 {[%clk 0:02:58]} 2. Nxg5 {[%clk 0:01:57]}  e5 {[%clk 0:02:57]} 3. Nf3 {[%clk 0:01:55]}  e4 {[%clk 0:02:57]} 4. Nd4 {[%clk 0:01:54]}  c5 {[%clk 0:02:57]} 5. Nb3 {[%clk 0:01:07]}  a5 {[%clk 0:02:58]} 6. a4 {[%clk 0:01:06]}  d5 {[%clk 0:02:56]} 7. d3 {[%clk 0:00:46]}  exd3 {[%clk 0:02:56]} 8. cxd3 {[%clk 0:00:47]}  Ra6 {[%clk 0:02:55]} 9. Nc3 {[%clk 0:00:47]}  Rg6 {[%clk 0:02:54]} 10. e4 {[%clk 0:00:47]}  d4 {[%clk 0:02:53]} 11. Nd5 {[%clk 0:00:46]}  Ne7 {[%clk 0:02:52]} 12. Nf4 {[%clk 0:00:46]}  Rgg8 {[%clk 0:02:45]} 13. Nxc5 {[%clk 0:00:44]}  Nec6 {[%clk 0:02:43]} 14. Nb3 {[%clk 0:00:44]}  Qc7 {[%clk 0:02:40]} 15. Bd2 {[%clk 0:00:43]}  Bb4 {[%clk 0:02:39]} 16. Nd5 {[%clk 0:00:42]}  Qd6 {[%clk 0:02:34]} 17. Nxb4 {[%clk 0:00:40]}  Nxb4 {[%clk 0:02:34]} 18. Rc1 {[%clk 0:00:32]}  Be6 {[%clk 0:02:33]} 19. Nc5 {[%clk 0:00:27]}  N8c6 {[%clk 0:02:27]} 20. Nxe6 {[%clk 0:00:27]}  Qxe6 {[%clk 0:02:28]} 21. Qf3 {[%clk 0:00:23]}  Rg6 {[%clk 0:02:25]} 22. Bxb4 {[%clk 0:00:20]}  Nxb4 {[%clk 0:02:25]} 23. Be2 {[%clk 0:00:21]}  O-O {[%clk 0:02:23]} 24. O-O {[%clk 0:00:20]}  Kh8 {[%clk 0:02:23]} 25. Kh1 {[%clk 0:00:20]}  Nc6 {[%clk 0:02:23]} 26. Qf5 {[%clk 0:00:20]}  Rf6 {[%clk 0:02:16]} 27. Qxe6 {[%clk 0:00:20]}  fxe6 {[%clk 0:02:17]} 28. f3 {[%clk 0:00:20]}  e5 {[%clk 0:02:17]} 29. Rc5 {[%clk 0:00:21]}  Kg7 {[%clk 0:02:11]} 30. Rfc1 {[%clk 0:00:21]}  Kf7 {[%clk 0:02:11]} 31. Rb5 {[%clk 0:00:21]}  Rb8 {[%clk 0:02:10]} 32. Bd1 {[%clk 0:00:22]}  Ke7 {[%clk 0:02:09]} 33. Bb3 {[%clk 0:00:22]}  Kd7 {[%clk 0:02:08]} 34. Bd5 {[%clk 0:00:22]}  Na7 {[%clk 0:02:02]} 35. Rbc5 {[%clk 0:00:19]}  Rc8 {[%clk 0:01:58]} 36. Rxc8 {[%clk 0:00:16]}  Nxc8 {[%clk 0:01:59]} 37. Bxb7 {[%clk 0:00:16]}  Nb6 {[%clk 0:01:59]} 38. Ba6 {[%clk 0:00:16]}  Kd8 {[%clk 0:01:52]} 39. Bb5 {[%clk 0:00:17]}  Nc8 {[%clk 0:01:51]} 40. Kg1 {[%clk 0:00:17]}  Na7 {[%clk 0:01:51]} 41. Bc4 {[%clk 0:00:17]}  Rb6 {[%clk 0:01:51]} 42. b3 {[%clk 0:00:17]}  Nc6 {[%clk 0:01:51]} 43. Kf2 {[%clk 0:00:17]}  Ke7 {[%clk 0:01:50]} 44. Ke2 {[%clk 0:00:18]}  Kd6 {[%clk 0:01:51]} 45. Kd2 {[%clk 0:00:18]}  Nb4 {[%clk 0:01:50]} 46. Bb5 {[%clk 0:00:19]}  Rb8 {[%clk 0:01:50]} 47. Rc4 {[%clk 0:00:18]}  Rg8 {[%clk 0:01:49]} 48. g3 {[%clk 0:00:18]}  h5 {[%clk 0:01:49]} 49. Rc1 {[%clk 0:00:16]}  h4 {[%clk 0:01:49]} 50. Rg1 {[%clk 0:00:17]}  hxg3 {[%clk 0:01:49]} 51. hxg3 {[%clk 0:00:18]}  Rh8 {[%clk 0:01:50]} 52. Rg2 {[%clk 0:00:18]}  Rh1 {[%clk 0:01:50]} 53. Bc4 {[%clk 0:00:17]}  Ra1 {[%clk 0:01:50]} 54. Ke2 {[%clk 0:00:17]}  Ra2+ {[%clk 0:01:48]} 55. Kf1 {[%clk 0:00:18]}  Nc2 {[%clk 0:01:49]} 56. Re2 {[%clk 0:00:16]}  Ne3+ {[%clk 0:01:49]} 57. Kf2 {[%clk 0:00:17]}  Ra1 {[%clk 0:01:49]} 58. Re1 {[%clk 0:00:18]}  Ra2+ {[%clk 0:01:47]} 59. Re2 {[%clk 0:00:18]}  Ra3 {[%clk 0:01:43]} 60. f4 {[%clk 0:00:18]}  Ra1 {[%clk 0:01:37]} 61. Kf3 {[%clk 0:00:17]}  Rf1+ {[%clk 0:01:33]} 62. Rf2 {[%clk 0:00:17]}  Rh1 {[%clk 0:01:34]} 63. fxe5+ {[%clk 0:00:17]}  Kxe5 {[%clk 0:01:35]} 64. g4 {[%clk 0:00:17]}  Rh3+ {[%clk 0:01:33]} 65. Ke2 {[%clk 0:00:17]}  Nxg4 {[%clk 0:01:33]} 66. Rf5+ {[%clk 0:00:17]}  Kd6 {[%clk 0:01:34]} 67. Rxa5 {[%clk 0:00:17]}  Ne3 {[%clk 0:01:10]} 68. Ra6+ {[%clk 0:00:15]}  Kc5 {[%clk 0:01:07]} 69. Ra5+ {[%clk 0:00:15]}  Kb4 {[%clk 0:01:06]} 70. Rb5+ {[%clk 0:00:16]}  Kc3 {[%clk 0:01:07]} 71. a5 {[%clk 0:00:16]}  Rh2+ {[%clk 0:01:05]} 72. Kf3 {[%clk 0:00:16]}  Rh3+ {[%clk 0:01:05]} 73. Kf4 {[%clk 0:00:16]}  Rh4+ {[%clk 0:01:05]} 74. Ke5 {[%clk 0:00:17]}  Rh5+ {[%clk 0:01:05]} 75. Kd6 {[%clk 0:00:17]}  Rh6+ {[%clk 0:01:05]} 76. Kc5 {[%clk 0:00:17]}  Rh5+ {[%clk 0:01:05]} 77. Kb6 {[%clk 0:00:18]}  Rh6+ {[%clk 0:01:05]} 78. Ka7 {[%clk 0:00:18]}  Rh7+ {[%clk 0:01:06]} 79. Rb7 {[%clk 0:00:18]}  Rh5 {[%clk 0:01:03]} 80. Ba6 {[%clk 0:00:16]}  Rxa5 {[%clk 0:01:01]} 81. Rc7+ {[%clk 0:00:16]}  Kd2 {[%clk 0:01:01]} 82. Kb6 {[%clk 0:00:16]}  Ra3 {[%clk 0:01:01]} 83. Bc4 {[%clk 0:00:15]}  Nxc4+ {[%clk 0:01:01]} 84. dxc4 {[%clk 0:00:14]}  Rxb3+ {[%clk 0:01:00]} 85. Kc5 {[%clk 0:00:15]}  d3 {[%clk 0:01:01]} 86. Rd7 {[%clk 0:00:15]}  Ke3 {[%clk 0:01:00]} 87. e5 {[%clk 0:00:16]}  d2 {[%clk 0:01:00]} 88. e6 {[%clk 0:00:16]}  Rd3 {[%clk 0:00:59]} 89. Rxd3+ {[%clk 0:00:16]}  Kxd3 {[%clk 0:01:00]} 90. e7 {[%clk 0:00:17]}  d1=Q {[%clk 0:00:59]} 91. e8=Q {[%clk 0:00:17]}  Kc3 {[%clk 0:00:46]} 92. Qe3+ {[%clk 0:00:16]}  Kc2 {[%clk 0:00:43]} 93. Qd4 {[%clk 0:00:16]}  Qh5+ {[%clk 0:00:41]} 94. Qd5 {[%clk 0:00:16]}  Qe8 {[%clk 0:00:38]} 95. Kd4 {[%clk 0:00:15]}  Qh8+ {[%clk 0:00:35]} 96. Kc5 {[%clk 0:00:15]}  Qc8+ {[%clk 0:00:35]} 97. Kd6 {[%clk 0:00:16]}  Qd8+ {[%clk 0:00:34]} 98. Kc6 {[%clk 0:00:16]}  Qa8+ {[%clk 0:00:34]} 99. Kb5 {[%clk 0:00:16]}  Qb8+ {[%clk 0:00:34]} 100. Kc5 {[%clk 0:00:17]}  Qa7+ {[%clk 0:00:34]} 101. Kd6 {[%clk 0:00:17]}  Qb6+ {[%clk 0:00:34]} 102. Ke5 {[%clk 0:00:17]}  Qc7+ {[%clk 0:00:32]} 103. Kd4 {[%clk 0:00:16]}  Qg7+ {[%clk 0:00:32]} 104. Qe5 {[%clk 0:00:16]}  Qa7+ {[%clk 0:00:32]} 105. c5 {[%clk 0:00:16]}  Kb3 {[%clk 0:00:23]} 106. Qd5+ {[%clk 0:00:14]}  Kc2 {[%clk 0:00:18]} 107. Qc4+ {[%clk 0:00:13]}  Kd2 {[%clk 0:00:19]} 108. Qd3+ {[%clk 0:00:13]}  Kc1 {[%clk 0:00:19]} 109. Qc3+ {[%clk 0:00:13]}  Kd1 {[%clk 0:00:18]} 110. Qf3+ {[%clk 0:00:10]}  Kd2 {[%clk 0:00:18]} 111. Qd5 {[%clk 0:00:11]}  Qg7+ {[%clk 0:00:18]} 112. Kc4+ {[%clk 0:00:10]}  Kc2 {[%clk 0:00:18]} 113. Qd3+ {[%clk 0:00:10]}  Kb2 {[%clk 0:00:18]} 114. Qd4+ {[%clk 0:00:11]}  Qxd4+ {[%clk 0:00:18]} 115. Kxd4 {[%clk 0:00:11]}  Kb3 {[%clk 0:00:19]} 116. c6 {[%clk 0:00:11]}  Kb4 {[%clk 0:00:20]} 117. c7 {[%clk 0:00:12]}  Kb5 {[%clk 0:00:20]} 118. c8=Q {[%clk 0:00:12]}  Kb6 {[%clk 0:00:21]} 119. Qc5+ {[%clk 0:00:12]}  Ka6 {[%clk 0:00:22]} 120. Qb4 {[%clk 0:00:12]}  Ka7 {[%clk 0:00:22]} 121. Kc5 {[%clk 0:00:13]}  Ka6 {[%clk 0:00:23]} 122. Qb6# {[%clk 0:00:12]} 1-0

[Event "January 9 Late 2024"]
[Site "https://www.chess.com"]
[Date "2024.01.09"]
[Round "6"]
[White "Ardila, Oscar Humberto"]
[Black "Martins, Bruno Andre Leite"]
[Result "0-1"]
[Board "140"]
[TimeControl "180+1"]
[WhiteFideId "4404742"]
[BlackFideId "1942255"]
[WhiteElo "2318"]
[BlackElo "2508"]
[WhiteTeam "COL"]
[BlackTeam "POR"]
[WhiteClock "0:01:57"]
[BlackClock "0:02:16"]

1. d4 {[%clk 0:03:00]}  Nf6 {[%clk 0:02:58]} 2. Nf3 {[%clk 0:03:00]}  e6 {[%clk 0:02:59]} 3. c4 {[%clk 0:02:59]}  b6 {[%clk 0:02:58]} 4. Qc2 {[%clk 0:02:59]}  Bb7 {[%clk 0:02:59]} 5. Bg5 {[%clk 0:02:58]}  Bb4+ {[%clk 0:02:58]} 6. Nbd2 {[%clk 0:02:58]}  h6 {[%clk 0:02:58]} 7. Bxf6 {[%clk 0:02:55]}  Qxf6 {[%clk 0:02:57]} 8. a3 {[%clk 0:02:50]}  Bxd2+ {[%clk 0:02:56]} 9. Qxd2 {[%clk 0:02:48]}  d6 {[%clk 0:02:51]} 10. Qc3 {[%clk 0:02:36]}  O-O {[%clk 0:02:38]} 11. g3 {[%clk 0:02:35]}  Bxf3 {[%clk 0:02:31]} 12. exf3 {[%clk 0:02:34]}  Nc6 {[%clk 0:02:30]} 13. Rd1 {[%clk 0:02:30]}  e5 {[%clk 0:02:29]} 14. d5 {[%clk 0:02:30]}  Nd4 {[%clk 0:02:29]} 15. Bg2 {[%clk 0:02:28]}  c5 {[%clk 0:02:27]} 16. dxc6 {[%clk 0:02:18]}  Rac8 {[%clk 0:02:27]} 17. O-O {[%clk 0:02:11]}  Ne2+ {[%clk 0:02:16]} 18. Kh1 {[%clk 0:02:04]}  Nxc3 {[%clk 0:02:17]} 19. bxc3 {[%clk 0:01:57]}  Rxc6 {[%clk 0:02:16]} 0-1

[Event "January 9 Late 2024"]
[Site "https://www.chess.com"]
[Date "2024.01.09"]
[Round "6"]
[White "Sarkar, Justin"]
[Black "Petre, Nad-Titus"]
[Result "1-0"]
[Board "142"]
[TimeControl "180+1"]
[WhiteFideId "2010011"]
[BlackFideId "1204165"]
[WhiteElo "2312"]
[BlackElo "2502"]
[WhiteTeam "USA"]
[BlackTeam "ROU"]
[WhiteClock "0:01:55"]
[BlackClock "0:02:15"]

1. e4 {[%clk 0:02:44]}  g6 {[%clk 0:02:56]} 2. d4 {[%clk 0:02:42]}  c6 {[%clk 0:02:57]} 3. c4 {[%clk 0:02:39]}  d5 {[%clk 0:02:51]} 4. cxd5 {[%clk 0:02:35]}  cxd5 {[%clk 0:02:52]} 5. e5 {[%clk 0:02:34]}  a6 {[%clk 0:02:52]} 6. Nc3 {[%clk 0:02:32]}  Nc6 {[%clk 0:02:51]} 7. f4 {[%clk 0:02:23]}  Bg4 {[%clk 0:02:43]} 8. Qxg4 {[%clk 0:02:19]}  Nxd4 {[%clk 0:02:43]} 9. Qd1 {[%clk 0:02:17]}  Nf5 {[%clk 0:02:30]} 10. Qa4+ {[%clk 0:01:56]}  b5 {[%clk 0:02:22]} 11. Nxb5 {[%clk 0:01:55]}  f6 {[%clk 0:02:15]} 12. Nd6# {[%clk 0:01:55]} 1-0

[Event "January 9 Late 2024"]
[Site "https://www.chess.com"]
[Date "2024.01.09"]
[Round "6"]
[White "Jose Iraeta, Alejandro"]
[Black "Novikov, Evgenij"]
[Result "0-1"]
[Board "148"]
[TimeControl "180+1"]
[WhiteFideId "2226537"]
[BlackFideId "4125380"]
[WhiteElo "2245"]
[BlackElo "2480"]
[WhiteTeam "ESP"]
[BlackTeam "RUS"]
[WhiteClock "0:00:00"]
[BlackClock "0:00:38"]

1. e4 {[%clk 0:02:56]}  e5 {[%clk 0:02:58]} 2. Nf3 {[%clk 0:02:55]}  d5 {[%clk 0:02:58]} 3. Nxe5 {[%clk 0:02:51]}  Bd6 {[%clk 0:02:43]} 4. d4 {[%clk 0:02:50]}  dxe4 {[%clk 0:02:42]} 5. Bc4 {[%clk 0:02:50]}  Bxe5 {[%clk 0:02:42]} 6. Qh5 {[%clk 0:02:50]}  Qe7 {[%clk 0:02:11]} 7. Qxe5 {[%clk 0:02:49]}  Qxe5 {[%clk 0:02:05]} 8. dxe5 {[%clk 0:02:50]}  Nc6 {[%clk 0:02:04]} 9. Nc3 {[%clk 0:02:35]}  Nxe5 {[%clk 0:01:54]} 10. Bd5 {[%clk 0:02:27]}  Nf6 {[%clk 0:01:49]} 11. Bf4 {[%clk 0:02:15]}  Ng6 {[%clk 0:01:45]} 12. Bxc7 {[%clk 0:02:14]}  O-O {[%clk 0:01:45]} 13. O-O-O {[%clk 0:02:11]}  Nxd5 {[%clk 0:01:35]} 14. Nxd5 {[%clk 0:02:07]}  Be6 {[%clk 0:01:31]} 15. Nc3 {[%clk 0:01:53]}  Rac8 {[%clk 0:01:23]} 16. Bd6 {[%clk 0:01:48]}  Rfe8 {[%clk 0:01:23]} 17. Rhe1 {[%clk 0:01:47]}  f5 {[%clk 0:01:22]} 18. f3 {[%clk 0:01:41]}  exf3 {[%clk 0:01:21]} 19. gxf3 {[%clk 0:01:42]}  Nh4 {[%clk 0:01:17]} 20. Re3 {[%clk 0:01:29]}  g5 {[%clk 0:01:07]} 21. Rg1 {[%clk 0:01:17]}  h6 {[%clk 0:01:04]} 22. f4 {[%clk 0:01:15]}  g4 {[%clk 0:01:02]} 23. h3 {[%clk 0:01:14]}  Kh7 {[%clk 0:00:50]} 24. hxg4 {[%clk 0:01:14]}  fxg4 {[%clk 0:00:50]} 25. Ne4 {[%clk 0:00:53]}  Kg6 {[%clk 0:00:41]} 26. Be5 {[%clk 0:00:31]}  Bf5 {[%clk 0:00:39]} 27. c3 {[%clk 0:00:10]}  Bxe4 {[%clk 0:00:39]} 28. Rxe4 {[%clk 0:00:11]}  h5 {[%clk 0:00:39]} 29. Rd4 {[%clk 0:00:10]}  Nf5 {[%clk 0:00:38]} 30. Rd7 {[%clk 0:00:10]}  Re7 {[%clk 0:00:39]} 31. Rgd1 {[%clk 0:00:10]}  Rce8 {[%clk 0:00:38]} 32. Rd8 {[%clk 0:00:07]}  g3 {[%clk 0:00:37]} 33. Rxe8 {[%clk 0:00:03]}  Rxe8 {[%clk 0:00:38]} 34. Kd2 {[%clk 0:00:03]}  Rd8+ {[%clk 0:00:37]} 35. Ke2 {[%clk 0:00:03]}  Rxd1 {[%clk 0:00:38]} 36. Kxd1 {[%clk 0:00:00]}  g2 {[%clk 0:00:38]} 0-1

[Event "January 9 Late 2024"]
[Site "https://www.chess.com"]
[Date "2024.01.09"]
[Round "6"]
[White "Svicevic, Rastko"]
[Black "D`Arruda, Ricardo D."]
[Result "1-0"]
[Board "149"]
[TimeControl "180+1"]
[WhiteFideId "916315"]
[BlackFideId "100692"]
[WhiteElo "2239"]
[BlackElo "2477"]
[WhiteTeam "SRB"]
[BlackTeam "ARG"]
[WhiteClock "0:00:03"]
[BlackClock "0:00:04"]

1. d4 {[%clk 0:03:00]}  Nf6 {[%clk 0:02:57]} 2. Bg5 {[%clk 0:03:01]}  c6 {[%clk 0:02:55]} 3. Bxf6 {[%clk 0:03:00]}  exf6 {[%clk 0:02:55]} 4. g3 {[%clk 0:02:59]}  d5 {[%clk 0:02:55]} 5. e3 {[%clk 0:02:59]}  g6 {[%clk 0:02:55]} 6. Bg2 {[%clk 0:02:59]}  Bg7 {[%clk 0:02:54]} 7. Ne2 {[%clk 0:03:00]}  Nd7 {[%clk 0:02:54]} 8. b3 {[%clk 0:02:59]}  f5 {[%clk 0:02:54]} 9. c4 {[%clk 0:02:54]}  Nf6 {[%clk 0:02:51]} 10. Nbc3 {[%clk 0:02:54]}  Be6 {[%clk 0:02:50]} 11. Qd3 {[%clk 0:02:54]}  Ne4 {[%clk 0:02:45]} 12. cxd5 {[%clk 0:02:47]}  cxd5 {[%clk 0:02:43]} 13. Qb5+ {[%clk 0:02:45]}  Qd7 {[%clk 0:02:43]} 14. Qxd7+ {[%clk 0:02:40]}  Kxd7 {[%clk 0:02:44]} 15. f3 {[%clk 0:02:32]}  Nxc3 {[%clk 0:02:44]} 16. Nxc3 {[%clk 0:02:33]}  Rhc8 {[%clk 0:02:41]} 17. Kd2 {[%clk 0:02:33]}  Bf8 {[%clk 0:02:40]} 18. a3 {[%clk 0:02:31]}  Rc6 {[%clk 0:02:33]} 19. Rhc1 {[%clk 0:02:23]}  Rac8 {[%clk 0:02:33]} 20. f4 {[%clk 0:02:20]}  a6 {[%clk 0:02:15]} 21. Nxd5 {[%clk 0:01:58]}  Rxc1 {[%clk 0:02:13]} 22. Nf6+ {[%clk 0:01:34]}  Ke7 {[%clk 0:01:50]} 23. Rxc1 {[%clk 0:01:34]}  Rxc1 {[%clk 0:01:49]} 24. Ng8+ {[%clk 0:01:31]}  Kd8 {[%clk 0:01:48]} 25. Kxc1 {[%clk 0:01:31]}  Bxa3+ {[%clk 0:01:48]} 26. Kc2 {[%clk 0:01:31]}  Kc7 {[%clk 0:01:28]} 27. Nf6 {[%clk 0:01:20]}  h5 {[%clk 0:01:28]} 28. Nd5+ {[%clk 0:01:07]}  Kb8 {[%clk 0:01:10]} 29. Nb6 {[%clk 0:01:01]}  Kc7 {[%clk 0:01:04]} 30. Nd5+ {[%clk 0:00:59]}  Kd6 {[%clk 0:00:57]} 31. Nb6 {[%clk 0:00:57]}  Kc7 {[%clk 0:00:52]} 32. Nc4 {[%clk 0:00:55]}  Bb4 {[%clk 0:00:50]} 33. d5 {[%clk 0:00:50]}  Bc8 {[%clk 0:00:49]} 34. Ne5 {[%clk 0:00:50]}  Bc5 {[%clk 0:00:38]} 35. Kd3 {[%clk 0:00:47]}  b5 {[%clk 0:00:37]} 36. Nxf7 {[%clk 0:00:45]}  a5 {[%clk 0:00:37]} 37. Ne5 {[%clk 0:00:42]}  a4 {[%clk 0:00:37]} 38. bxa4 {[%clk 0:00:41]}  bxa4 {[%clk 0:00:38]} 39. Nxg6 {[%clk 0:00:16]}  a3 {[%clk 0:00:38]} 40. Kc3 {[%clk 0:00:16]}  Bxe3 {[%clk 0:00:36]} 41. Kb3 {[%clk 0:00:14]}  Bc5 {[%clk 0:00:34]} 42. Ne5 {[%clk 0:00:15]}  Ba6 {[%clk 0:00:31]} 43. Bf3 {[%clk 0:00:12]}  h4 {[%clk 0:00:22]} 44. gxh4 {[%clk 0:00:11]}  Be3 {[%clk 0:00:19]} 45. Ng6 {[%clk 0:00:11]}  Bb5 {[%clk 0:00:16]} 46. Kxa3 {[%clk 0:00:10]}  Be8 {[%clk 0:00:14]} 47. h5 {[%clk 0:00:10]}  Kd6 {[%clk 0:00:12]} 48. Kb3 {[%clk 0:00:08]}  Bxg6 {[%clk 0:00:09]} 49. hxg6 {[%clk 0:00:08]}  Ke7 {[%clk 0:00:08]} 50. d6+ {[%clk 0:00:07]}  Kf6 {[%clk 0:00:08]} 51. d7 {[%clk 0:00:06]}  Bb6 {[%clk 0:00:09]} 52. Bh5 {[%clk 0:00:03]}  Bd8 {[%clk 0:00:07]} 53. Kc4 {[%clk 0:00:03]}  Kg7 {[%clk 0:00:08]} 54. Kd5 {[%clk 0:00:03]}  Kh6 {[%clk 0:00:09]} 55. Bf3 {[%clk 0:00:01]}  Bf6 {[%clk 0:00:09]} 56. Ke6 {[%clk 0:00:02]}  Kxg6 {[%clk 0:00:09]} 57. h3 {[%clk 0:00:01]}  Bd8 {[%clk 0:00:10]} 58. Be2 {[%clk 0:00:01]}  Bh4 {[%clk 0:00:10]} 59. Bd3 {[%clk 0:00:01]}  Kh5 {[%clk 0:00:08]} 60. Bxf5 {[%clk 0:00:02]}  Bd8 {[%clk 0:00:08]} 61. Bg4+ {[%clk 0:00:03]}  Kh4 {[%clk 0:00:09]} 62. f5 {[%clk 0:00:04]}  Kg5 {[%clk 0:00:09]} 63. Bf3 {[%clk 0:00:03]}  Kf4 {[%clk 0:00:09]} 64. Bg2 {[%clk 0:00:03]}  Kg3 {[%clk 0:00:09]} 65. Bf1 {[%clk 0:00:03]}  Kf2 {[%clk 0:00:10]} 66. f6 {[%clk 0:00:03]}  Kxf1 {[%clk 0:00:04]} 67. f7 {[%clk 0:00:03]} 1-0

[Event "January 9 Late 2024"]
[Site "https://www.chess.com"]
[Date "2024.01.09"]
[Round "6"]
[White "Peycheva, Gergana"]
[Black "Tqebuchava, Zurab"]
[Result "1-0"]
[Board "153"]
[TimeControl "180+1"]
[WhiteFideId "2916711"]
[BlackFideId "13601113"]
[WhiteElo "2445"]
[BlackElo "2190"]
[WhiteTeam "BUL"]
[BlackTeam "GEO"]
[WhiteClock "0:00:32"]
[BlackClock "0:00:00"]

1. d4 {[%clk 0:03:00]}  d5 {[%clk 0:02:59]} 2. c4 {[%clk 0:02:58]}  c6 {[%clk 0:02:58]} 3. e3 {[%clk 0:02:56]}  Nf6 {[%clk 0:02:57]} 4. Nc3 {[%clk 0:02:55]}  e6 {[%clk 0:02:53]} 5. Nf3 {[%clk 0:02:53]}  Be7 {[%clk 0:02:47]} 6. b3 {[%clk 0:02:49]}  b6 {[%clk 0:02:45]} 7. Bb2 {[%clk 0:02:46]}  Bb7 {[%clk 0:02:44]} 8. Be2 {[%clk 0:02:37]}  O-O {[%clk 0:02:38]} 9. O-O {[%clk 0:02:38]}  Nbd7 {[%clk 0:02:36]} 10. Qc2 {[%clk 0:02:32]}  dxc4 {[%clk 0:02:28]} 11. bxc4 {[%clk 0:02:25]}  c5 {[%clk 0:02:27]} 12. Rfd1 {[%clk 0:01:59]}  Rc8 {[%clk 0:02:19]} 13. dxc5 {[%clk 0:01:53]}  Bxc5 {[%clk 0:02:03]} 14. Ne5 {[%clk 0:01:46]}  Qe7 {[%clk 0:01:53]} 15. Nxd7 {[%clk 0:01:43]}  Nxd7 {[%clk 0:01:52]} 16. Ne4 {[%clk 0:01:39]}  Bxe4 {[%clk 0:01:31]} 17. Qxe4 {[%clk 0:01:40]}  Nf6 {[%clk 0:01:17]} 18. Qh4 {[%clk 0:01:35]}  Rfd8 {[%clk 0:00:59]} 19. Bd3 {[%clk 0:01:33]}  h6 {[%clk 0:00:55]} 20. a3 {[%clk 0:01:19]}  Nh7 {[%clk 0:00:38]} 21. Qe4 {[%clk 0:01:01]}  Nf8 {[%clk 0:00:36]} 22. Qg4 {[%clk 0:00:46]}  Qg5 {[%clk 0:00:34]} 23. Qe4 {[%clk 0:00:42]}  Rd7 {[%clk 0:00:27]} 24. h4 {[%clk 0:00:39]}  Qf5 {[%clk 0:00:19]} 25. Qxf5 {[%clk 0:00:33]}  exf5 {[%clk 0:00:20]} 26. Bxf5 {[%clk 0:00:33]}  Rxd1+ {[%clk 0:00:20]} 27. Rxd1 {[%clk 0:00:33]}  Be7 {[%clk 0:00:00]} 28. Bxc8 {[%clk 0:00:32]} 1-0

[Event "January 9 Late 2024"]
[Site "https://www.chess.com"]
[Date "2024.01.09"]
[Round "6"]
[White "Nicula, Marius"]
[Black "Koziol, Kamil"]
[Result "0-1"]
[Board "157"]
[TimeControl "180+1"]
[WhiteFideId "1203096"]
[BlackFideId "1161555"]
[WhiteElo "2027"]
[BlackElo "2441"]
[WhiteTeam "CAN"]
[BlackTeam "POL"]
[WhiteClock "0:00:00"]
[BlackClock "0:02:06"]

1. e4 {[%clk 0:03:00]}  c5 {[%clk 0:02:58]} 2. Nf3 {[%clk 0:03:00]}  e6 {[%clk 0:02:59]} 3. d4 {[%clk 0:03:00]}  cxd4 {[%clk 0:03:00]} 4. Nxd4 {[%clk 0:03:00]}  Nf6 {[%clk 0:03:00]} 5. Nc3 {[%clk 0:02:52]}  Nc6 {[%clk 0:02:59]} 6. Ndb5 {[%clk 0:02:44]}  Bb4 {[%clk 0:02:59]} 7. Nd6+ {[%clk 0:02:36]}  Ke7 {[%clk 0:02:58]} 8. Nxc8+ {[%clk 0:02:32]}  Rxc8 {[%clk 0:02:57]} 9. Bd3 {[%clk 0:02:33]}  Re8 {[%clk 0:02:55]} 10. O-O {[%clk 0:02:31]}  d5 {[%clk 0:02:44]} 11. exd5 {[%clk 0:02:27]}  exd5 {[%clk 0:02:42]} 12. Bg5 {[%clk 0:02:11]}  Kf8 {[%clk 0:02:32]} 13. Bxf6 {[%clk 0:02:07]}  Qxf6 {[%clk 0:02:11]} 14. Nxd5 {[%clk 0:00:00]}  Qxb2 {[%clk 0:02:06]} 0-1

[Event "January 9 Late 2024"]
[Site "https://www.chess.com"]
[Date "2024.01.09"]
[Round "6"]
[White "Mazurkiewicz, Michal"]
[Black "Antunes, Luciano Justi"]
[Result "1-0"]
[Board "158"]
[TimeControl "180+1"]
[WhiteFideId "1124943"]
[BlackFideId "2126893"]
[WhiteElo "2441"]
[BlackElo "2121"]
[WhiteTeam "POL"]
[BlackTeam "BRA"]
[WhiteClock "0:01:22"]
[BlackClock "0:00:05"]

1. e4 {[%clk 0:02:59]}  c5 {[%clk 0:02:59]} 2. Nf3 {[%clk 0:02:59]}  Nc6 {[%clk 0:02:59]} 3. g3 {[%clk 0:02:59]}  e5 {[%clk 0:02:53]} 4. Bg2 {[%clk 0:03:00]}  d6 {[%clk 0:02:53]} 5. O-O {[%clk 0:03:00]}  Nge7 {[%clk 0:02:51]} 6. d3 {[%clk 0:03:00]}  g6 {[%clk 0:02:51]} 7. Nc3 {[%clk 0:03:01]}  Bg7 {[%clk 0:02:51]} 8. Nd2 {[%clk 0:03:02]}  O-O {[%clk 0:02:51]} 9. Nc4 {[%clk 0:03:03]}  Be6 {[%clk 0:02:48]} 10. Nd5 {[%clk 0:03:03]}  Bxd5 {[%clk 0:02:45]} 11. exd5 {[%clk 0:03:04]}  Nd4 {[%clk 0:02:45]} 12. c3 {[%clk 0:03:03]}  Ndf5 {[%clk 0:02:38]} 13. a4 {[%clk 0:02:57]}  b6 {[%clk 0:02:36]} 14. f4 {[%clk 0:02:56]}  exf4 {[%clk 0:02:26]} 15. Bxf4 {[%clk 0:02:57]}  h5 {[%clk 0:02:26]} 16. h3 {[%clk 0:02:41]}  Nc8 {[%clk 0:02:17]} 17. Qd2 {[%clk 0:02:36]}  Kh7 {[%clk 0:01:51]} 18. g4 {[%clk 0:02:34]}  hxg4 {[%clk 0:01:49]} 19. hxg4 {[%clk 0:02:34]}  Nh6 {[%clk 0:01:49]} 20. Bf3 {[%clk 0:02:33]}  Qh4 {[%clk 0:01:38]} 21. Kg2 {[%clk 0:02:05]}  Qe7 {[%clk 0:00:20]} 22. Rh1 {[%clk 0:01:51]}  Rh8 {[%clk 0:00:15]} 23. Bxh6 {[%clk 0:01:51]}  Kg8 {[%clk 0:00:13]} 24. Bxg7 {[%clk 0:01:48]}  Kxg7 {[%clk 0:00:14]} 25. Rxh8 {[%clk 0:01:47]}  Kxh8 {[%clk 0:00:15]} 26. Qh6+ {[%clk 0:01:47]}  Kg8 {[%clk 0:00:15]} 27. Rh1 {[%clk 0:01:45]}  Qf6 {[%clk 0:00:15]} 28. Qh7+ {[%clk 0:01:45]}  Kf8 {[%clk 0:00:14]} 29. Qh8+ {[%clk 0:01:40]}  Qxh8 {[%clk 0:00:14]} 30. Rxh8+ {[%clk 0:01:40]}  Ke7 {[%clk 0:00:13]} 31. g5 {[%clk 0:01:40]}  a6 {[%clk 0:00:10]} 32. Bg4 {[%clk 0:01:38]}  b5 {[%clk 0:00:09]} 33. Rxc8 {[%clk 0:01:21]}  Rxc8 {[%clk 0:00:07]} 34. Bxc8 {[%clk 0:01:21]}  bxc4 {[%clk 0:00:05]} 35. Bxa6 {[%clk 0:01:22]} 1-0